[Event "European Womens-ch 2025"]
[Site "Rhodes"]
[Date "2025.04.05"]
[Round "6.8"]
[White "Toncheva, Nadya"]
[Black "Ushenina, Anna"]
[Result "1/2-1/2"]
[Annotator "RC"]
[ECO "A50"]
[WhiteElo "2329"]
[BlackElo "2428"]
[PlyCount "144"]
[EventDate "2025.03.29"]
[EventType "swiss"]
[EventCountry "GRE"]
[SourceTitle "playchess.com"]
[Source "ChessBase"]
[SourceQuality "1"]
[TimeControl "40/5400+30:1800+30"]

1. d4 {[%emt 0:00:04]} Nf6 {[%emt 0:00:18]} 2. c4 {[%emt 0:00:07]} b6 {[%emt 0:00:29]} 3. Nc3 {[%emt 0:01:19]} Bb7 {[%emt 0:00:30]} 4. f3 {[%emt 0:07:36]} d5 {[%emt 0:02:51]} 5. cxd5 {[%emt 0:00:51]} Nxd5 {[%emt 0:00:04]} 6. e4 {[%emt 0:00:33]} Nxc3 {[%emt 0:00:50]} 7. bxc3 {[%emt 0:00:06]} e6 {[%emt 0:21:15]} 8. Bd3 {[%emt 0:07:24]} c5 {[%emt 0:14:17]} 9. Ne2 {[%emt 0:00:33]} Be7 {[%emt 0:11:18]} 10. O-O {[%emt 0:03:19]} O-O {[%emt 0:00:11]} 11. Be3 {[%emt 0:02:20]} cxd4 {[%emt 0:09:03]} 12. cxd4 {[%emt 0:00:11]} Nc6 {[%emt 0:00:28]} 13. Rc1 {[%emt 0:12:54]} Rc8 {[%emt 0:02:32]} 14. Qa4 {[%emt 0:04:48]} Qd6 {[%emt 0:10:44]} 15. Rfd1 {[%emt 0:06:39]} Qb4 {[%emt 0:03:09]} 16. Qxb4 {[%emt 0:00:13]} Nxb4 {[%emt 0:00:09]} 17. Bb1 {[%emt 0:00:36]} Ba6 {[%emt 0:06:37]} 18. Kf2 {[%emt 0:03:37]} Rfd8 {[%emt 0:00:58]} 19. a3 {[%emt 0:10:03]} Nc6 {[%emt 0:01:34]} 20. Bd3 {[%emt 0:04:34]} Bb7 {[%emt 0:01:40]} 21. Rc3 {[%emt 0:01:33]} Na5 {[%emt 0:02:15]} 22. Rdc1 {[%emt 0:00:18]} Rxc3 {[%emt 0:00:36]} 23. Rxc3 {[%emt 0:00:07]} Kf8 {[%emt 0:00:43]} 24. g4 {[%emt 0:04:18]} h6 {[%emt 0:00:25]} 25. f4 {[%emt 0:01:04]} Rc8 {[%emt 0:03:08]} 26. Rxc8+ {[%emt 0:02:44]} Bxc8 {[%emt 0:00:01]} 27. Bc1 {[%emt 0:00:21]} Bd7 {[%emt 0:02:02]} 28. f5 {[%emt 0:02:35]} Ba4 {[%emt 0:02:28]} 29. Nf4 {[%emt 0:02:01]} Bb3 {[%emt 0:03:34]} 30. fxe6 {[%emt 0:01:44]} fxe6 {[%emt 0:00:05]} 31. Ng6+ {[%emt 0:00:05]} Kf7 {[%emt 0:00:08]} 32. Nxe7 {[%emt 0:00:22]} Kxe7 {[%emt 0:00:01]} 33. Bb5 {[%emt 0:12:41]} Nc4 {[%emt 0:00:40]} 34. Ke2 {[%emt 0:00:21]} Nd6 {[%emt 0:00:24]} 35. Bc6 {[%emt 0:00:57]} Bc4+ {[%emt 0:01:50]} 36. Ke3 {[%emt 0:01:21]} Bb3 {[%emt 0:00:28]} 37. Kd3 {[%emt 0:02:31]} Bc4+ {[%emt 0:00:16]} 38. Kc3 {[%emt 0:00:59]} Be2 {[%emt 0:00:25]} 39. g5 {[%emt 0:00:06]} hxg5 {[%emt 0:00:40]} 40. Bxg5+ {[%emt 0:00:00]} Kf7 {[%emt 0:00:00]} 41. a4 {[%emt 0:03:04]} Bf3 {[%emt 0:06:49]} 42. Kd3 {[%emt 0:00:45]} Bg2 {[%emt 0:00:44]} 43. Bf4 {[%emt 0:04:52]} Ke7 {[%emt 0:03:25]} 44. Be5 {[%emt 0:02:38]} g6 {[%emt 0:00:41]} 45. h4 {[%emt 0:01:13]} Bf1+ {[%emt 0:02:38]} 46. Ke3 {[%emt 0:05:25]} Nc4+ {[%emt 0:09:41]} 47. Kf4 {[%emt 0:00:06]} Na5 {[%emt 0:00:20]} 48. Bb5 {[%emt 0:02:29]} Bc4 {[%emt 0:04:37]} 49. Bc7 {[%emt 0:04:06]} a6 {[%emt 0:01:16]} 50. Bxc4 {[%emt 0:03:55]} Nxc4 {[%emt 0:00:01]} 51. Kg5 {[%emt 0:02:09]} Kf7 {[%emt 0:01:13]} 52. d5 {[%emt 0:02:58]} exd5 {[%emt 0:00:23]} 53. exd5 {[%emt 0:00:05]} b5 {[%emt 0:00:05]} 54. axb5 {[%emt 0:00:05]} axb5 {[%emt 0:00:01]} 55. d6 {[%emt 0:03:18]} Ne5 {[%emt 0:03:47]} 56. Ba5 {[%emt 0:01:19]} Ke6 {[%emt 0:01:26]} 57. Bb4 {[%emt 0:00:10]} Nf3+ {[%emt 0:00:32]} 58. Kxg6 {[%emt 0:00:36]} Nxh4+ {[%emt 0:00:03]} 59. Kg5 {[%emt 0:00:06]} Ng2 {[%emt 0:01:04]} 60. Kg4 {[%emt 0:00:39]} Ne3+ {[%emt 0:00:10]} 61. Kf3 {[%emt 0:00:17]} Nc4 {[%emt 0:00:18]} 62. Ke4 {[%emt 0:00:35]} Nxd6+ {[%emt 0:00:07]} 63. Bxd6 {[%emt 0:00:29]} Kxd6 {[%emt 0:00:03]} 64. Kd4 {[%emt 0:00:06]} Kc6 {[%emt 0:00:03]} 65. Kc3 {[%emt 0:00:04]} Kc5 {[%emt 0:00:03]} 66. Kb3 {[%emt 0:00:04]} b4 {[%emt 0:00:03]} 67. Kb2 {[%emt 0:00:06]} Kc4 {[%emt 0:00:02]} 68. Kc2 {[%emt 0:00:04]} b3+ {[%emt 0:00:03]} 69. Kb2 {[%emt 0:00:06]} Kb4 {[%emt 0:00:03]} 70. Kb1 {[%emt 0:00:08]} Kc3 {[%emt 0:00:03]} 71. Kc1 {[%emt 0:00:04]} b2+ {[%emt 0:00:03]} 72. Kb1 {[%emt 0:00:05]} Kb3 {[%emt 0:00:03]} 1/2-1/2

[Event "European Womens-ch 2025"]
[Site "Rhodes"]
[Date "2025.04.05"]
[Round "6.9"]
[White "Unuk, Laura"]
[Black "Beydullayeva, Govhar"]
[Result "0-1"]
[Annotator "RC"]
[ECO "E11"]
[WhiteElo "2301"]
[BlackElo "2400"]
[PlyCount "74"]
[EventDate "2025.03.29"]
[EventType "swiss"]
[EventCountry "GRE"]
[SourceTitle "playchess.com"]
[Source "ChessBase"]
[SourceQuality "1"]
[TimeControl "40/5400+30:1800+30"]

1. d4 {[%emt 0:01:17]} Nf6 {[%emt 0:00:10]} 2. c4 {[%emt 0:00:16]} e6 {[%emt 0:00:09]} 3. Nf3 {[%emt 0:00:06]} d5 {[%emt 0:00:09]} 4. g3 {[%emt 0:00:18]} Bb4+ {[%emt 0:00:18]} 5. Bd2 {[%emt 0:00:08]} Be7 {[%emt 0:00:40]} 6. Bg2 {[%emt 0:00:14]} Nbd7 {[%emt 0:00:44]} 7. O-O {[%emt 0:00:43]} c6 {[%emt 0:00:15]} 8. Qc2 {[%emt 0:00:26]} b6 {[%emt 0:00:38]} 9. Bf4 {[%emt 0:02:41]} Bb7 {[%emt 0:03:21]} 10. Nbd2 {[%emt 0:02:01]} Nh5 {[%emt 0:05:03]} 11. cxd5 {[%emt 0:08:12]} exd5 {[%emt 0:03:56]} 12. Be3 {[%emt 0:17:15]} O-O {[%emt 0:00:18]} 13. h4 {[%emt 0:00:06]} Nhf6 {[%emt 0:08:38]} 14. Rfd1 {[%emt 0:05:31]} c5 {[%emt 0:06:45]} 15. dxc5 {[%emt 0:18:05]} bxc5 {[%emt 0:00:15]} 16. Rac1 {[%emt 0:01:26]} h6 {[%emt 0:06:29]} 17. Bf4 {[%emt 0:09:08]} Re8 {[%emt 0:12:08]} 18. e3 {[%emt 0:03:52]} Bf8 {[%emt 0:11:23]} 19. Qf5 {[%emt 0:14:39]} g6 {[%emt 0:01:39]} 20. Qh3 {[%emt 0:00:04]} Qe7 {[%emt 0:12:32]} 21. b4 {[%emt 0:02:48]} Bg7 {[%emt 0:09:33]} 22. bxc5 {[%emt 0:02:21]} Nxc5 {[%emt 0:00:05]} 23. Nb3 {[%emt 0:05:10]} Bc8 {[%emt 0:01:31]} 24. Qh1 {[%emt 0:00:12]} Nce4 {[%emt 0:00:21]} 25. Ne5 {[%emt 0:04:04]} Qa3 {[%emt 0:06:55]} 26. f3 {[%emt 0:01:27]} Qxa2 {[%emt 0:00:40]} 27. fxe4 {[%emt 0:00:06]} Rxe5 {[%emt 0:05:41]} 28. Bxe5 {[%emt 0:01:10]} Ng4 {[%emt 0:00:09]} 29. Nd2 {[%emt 0:00:32]} Bxe5 {[%emt 0:00:18]} 30. Bh3 {[%emt 0:00:39]} Nxe3 {[%emt 0:01:36]} 31. Bxc8 {[%emt 0:00:18]} Nxd1 {[%emt 0:00:09]} 32. Rxd1 {[%emt 0:00:30]} Rxc8 {[%emt 0:00:23]} 33. exd5 {[%emt 0:00:33]} Qc2 {[%emt 0:01:30]} 34. Qf3 {[%emt 0:00:14]} Rc3 {[%emt 0:00:15]} 35. Qe2 {[%emt 0:00:12]} Rxg3+ {[%emt 0:00:34]} 36. Kf2 {[%emt 0:00:03]} Qc5+ {[%emt 0:00:14]} 37. Ke1 {[%emt 0:00:37]} Re3 {[%emt 0:00:12]} 0-1

[Event "European Womens-ch 2025"]
[Site "Rhodes"]
[Date "2025.04.05"]
[Round "6.10"]
[White "Danielian, Elina"]
[Black "Heinemann, Josefine"]
[Result "1-0"]
[Annotator "RC"]
[ECO "D45"]
[WhiteElo "2398"]
[BlackElo "2297"]
[PlyCount "119"]
[EventDate "2025.03.29"]
[EventType "swiss"]
[EventCountry "GRE"]
[SourceTitle "playchess.com"]
[Source "ChessBase"]
[SourceQuality "1"]
[TimeControl "40/5400+30:1800+30"]

1. d4 {[%emt 0:00:03]} d5 {[%emt 0:00:05]} 2. c4 {[%emt 0:00:05]} c6 {[%emt 0:00:04]} 3. Nf3 {[%emt 0:00:31]} Nf6 {[%emt 0:00:06]} 4. Nc3 {[%emt 0:00:20]} e6 {[%emt 0:00:11]} 5. e3 {[%emt 0:00:39]} Nbd7 {[%emt 0:00:06]} 6. Qc2 {[%emt 0:00:04]} Bd6 {[%emt 0:00:26]} 7. b3 {[%emt 0:04:39]} O-O {[%emt 0:00:28]} 8. Bb2 {[%emt 0:02:16]} e5 {[%emt 0:04:13]} 9. cxd5 {[%emt 0:01:53]} cxd5 {[%emt 0:00:31]} 10. dxe5 {[%emt 0:02:40]} Nxe5 {[%emt 0:00:05]} 11. Be2 {[%emt 0:14:56]} Nxf3+ {[%emt 0:08:43]} 12. Bxf3 {[%emt 0:02:51]} Be6 {[%emt 0:03:11]} 13. O-O {[%emt 0:02:27]} Rc8 {[%emt 0:00:53]} 14. Qd3 {[%emt 0:05:41]} Be5 {[%emt 0:05:10]} 15. Rac1 {[%emt 0:03:47]} Qa5 {[%emt 0:08:09]} 16. a3 {[%emt 0:06:10]} Rfd8 {[%emt 0:14:25]} 17. b4 {[%emt 0:02:59]} Qb6 {[%emt 0:01:58]} 18. Rfd1 {[%emt 0:12:21]} h6 {[%emt 0:11:59]} 19. h3 {[%emt 0:01:32]} a6 {[%emt 0:07:18]} 20. Na4 {[%emt 0:00:44]} Qd6 {[%emt 0:00:02]} 21. Bd4 {[%emt 0:02:54]} Bxd4 {[%emt 0:01:04]} 22. Qxd4 {[%emt 0:00:52]} a5 {[%emt 0:04:53]} 23. Nc5 {[%emt 0:01:43]} Rc7 {[%emt 0:01:16]} 24. e4 {[%emt 0:07:54]} Qe7 {[%emt 0:05:55]} 25. e5 {[%emt 0:04:40]} Nh7 {[%emt 0:00:38]} 26. Nxe6 {[%emt 0:03:49]} fxe6 {[%emt 0:01:35]} 27. Bg4 {[%emt 0:01:20]} Nf8 {[%emt 0:01:26]} 28. bxa5 {[%emt 0:08:53]} Rxc1 {[%emt 0:02:59]} 29. Rxc1 {[%emt 0:00:03]} Qxa3 {[%emt 0:00:12]} 30. Ra1 {[%emt 0:00:07]} Qe7 {[%emt 0:02:07]} 31. Rb1 {[%emt 0:00:05]} Ra8 {[%emt 0:01:58]} 32. Rb5 {[%emt 0:01:11]} Ra6 {[%emt 0:04:07]} 33. Qb2 {[%emt 0:03:01]} Qc7 {[%emt 0:01:06]} 34. Kh2 {[%emt 0:02:40]} Rxa5 {[%emt 0:02:43]} 35. Rxb7 {[%emt 0:00:06]} Qc4 {[%emt 0:00:26]} 36. Rb8 {[%emt 0:01:20]} d4 {[%emt 0:04:15]} 37. Qb6 {[%emt 0:00:37]} Ra6 {[%emt 0:01:44]} 38. Qd8 {[%emt 0:00:24]} Qc5 {[%emt 0:00:05]} 39. f4 {[%emt 0:00:31]} d3 {[%emt 0:02:11]} 40. Qxd3 {[%emt 0:00:00]} Rb6 {[%emt 0:00:00]} 41. Ra8 {[%emt 0:10:27]} Qb4 {[%emt 0:06:13]} 42. Qf3 {[%emt 0:01:37]} g6 {[%emt 0:06:30]} 43. Qg3 {[%emt 0:03:32]} Qe4 {[%emt 0:05:56]} 44. Bf3 {[%emt 0:01:38]} Qf5 {[%emt 0:00:08]} 45. Bg4 {[%emt 0:03:40]} Qe4 {[%emt 0:00:46]} 46. Rc8 {[%emt 0:00:45]} Qb7 {[%emt 0:04:09]} 47. Qc3 {[%emt 0:02:13]} h5 {[%emt 0:04:04]} 48. Qc5 {[%emt 0:03:46]} Qf7 {[%emt 0:01:50]} 49. Qxb6 {[%emt 0:00:09]} Qxf4+ {[%emt 0:00:37]} 50. Kg1 {[%emt 0:01:29]} hxg4 {[%emt 0:00:36]} 51. Qxe6+ {[%emt 0:00:22]} Kg7 {[%emt 0:00:54]} 52. Qf6+ {[%emt 0:02:37]} Qxf6 {[%emt 0:00:06]} 53. exf6+ {[%emt 0:00:03]} Kf7 {[%emt 0:00:09]} 54. h4 {[%emt 0:00:17]} Ne6 {[%emt 0:00:43]} 55. Kf2 {[%emt 0:00:32]} Kxf6 {[%emt 0:01:19]} 56. Kg3 {[%emt 0:00:06]} Kf5 {[%emt 0:00:18]} 57. Ra8 {[%emt 0:00:29]} Ke5 {[%emt 0:00:20]} 58. Kxg4 {[%emt 0:00:21]} Kf6 {[%emt 0:00:03]} 59. Ra6 {[%emt 0:00:35]} Kf7 {[%emt 0:00:42]} 60. Rxe6 {[%emt 0:00:45]} 1-0

[Event "European Womens-ch 2025"]
[Site "Rhodes"]
[Date "2025.04.05"]
[Round "6.11"]
[White "Kochavi, Dana"]
[Black "Daulyte-Cornette, Deimante"]
[Result "1/2-1/2"]
[Annotator "RC"]
[ECO "C64"]
[WhiteElo "2301"]
[BlackElo "2389"]
[PlyCount "148"]
[EventDate "2025.03.29"]
[EventType "swiss"]
[EventCountry "GRE"]
[SourceTitle "playchess.com"]
[Source "ChessBase"]
[SourceQuality "1"]
[TimeControl "40/5400+30:1800+30"]

1. e4 {[%emt 0:00:01]} e5 {[%emt 0:00:09]} 2. Nf3 {[%emt 0:00:04]} Nc6 {[%emt 0:00:07]} 3. Bb5 {[%emt 0:00:04]} a6 {[%emt 0:00:16]} 4. Ba4 {[%emt 0:00:02]} Bc5 {[%emt 0:00:21]} 5. O-O {[%emt 0:00:17]} Nge7 {[%emt 0:00:21]} 6. c3 {[%emt 0:01:07]} Ba7 {[%emt 0:00:19]} 7. d4 {[%emt 0:01:44]} Ng6 {[%emt 0:00:16]} 8. Be3 {[%emt 0:02:12]} O-O {[%emt 0:00:56]} 9. d5 {[%emt 0:13:03]} Bxe3 {[%emt 0:02:48]} 10. dxc6 {[%emt 0:04:36]} b5 {[%emt 0:00:11]} 11. fxe3 {[%emt 0:00:05]} bxa4 {[%emt 0:00:06]} 12. Qxa4 {[%emt 0:00:49]} dxc6 {[%emt 0:04:47]} 13. Rd1 {[%emt 0:09:40]} Qe7 {[%emt 0:05:44]} 14. Qxc6 {[%emt 0:09:39]} Rb8 {[%emt 0:01:01]} 15. b3 {[%emt 0:00:53]} Rb6 {[%emt 0:16:28]} 16. Qc4 {[%emt 0:00:10]} Nh4 {[%emt 0:01:15]} 17. Nbd2 {[%emt 0:06:22]} Rg6 {[%emt 0:00:58]} 18. Nxh4 {[%emt 0:01:28]} Qxh4 {[%emt 0:00:07]} 19. Nf1 {[%emt 0:00:47]} Be6 {[%emt 0:25:11]} 20. Qc5 {[%emt 0:09:12]} Qxe4 {[%emt 0:13:30]} 21. Ng3 {[%emt 0:00:05]} Qc2 {[%emt 0:01:15]} 22. Qxe5 {[%emt 0:00:44]} h5 {[%emt 0:00:42]} 23. c4 {[%emt 0:04:10]} Bg4 {[%emt 0:06:40]} 24. Rdc1 {[%emt 0:02:13]} Qd2 {[%emt 0:00:25]} 25. Qd4 {[%emt 0:00:37]} Rd8 {[%emt 0:00:54]} 26. Qxd2 {[%emt 0:00:06]} Rxd2 {[%emt 0:00:05]} 27. Kh1 {[%emt 0:14:17]} h4 {[%emt 0:04:03]} 28. Ne4 {[%emt 0:07:21]} Rb2 {[%emt 0:02:36]} 29. Rf1 {[%emt 0:01:01]} Re2 {[%emt 0:09:42]} 30. Nc3 {[%emt 0:04:27]} Rxe3 {[%emt 0:01:48]} 31. Nd5 {[%emt 0:00:04]} Re4 {[%emt 0:01:48]} 32. Rfe1 {[%emt 0:00:44]} Rge6 {[%emt 0:00:42]} 33. Rxe4 {[%emt 0:00:04]} Rxe4 {[%emt 0:00:04]} 34. h3 {[%emt 0:00:18]} c6 {[%emt 0:00:46]} 35. Nb4 {[%emt 0:00:26]} Bc8 {[%emt 0:00:54]} 36. Nxc6 {[%emt 0:01:03]} Re2 {[%emt 0:00:34]} 37. Nd4 {[%emt 0:00:26]} Rd2 {[%emt 0:00:17]} 38. Nf3 {[%emt 0:00:05]} Rc2 {[%emt 0:00:12]} 39. Nxh4 {[%emt 0:00:33]} Bb7 {[%emt 0:00:15]} 40. Nf3 {[%emt 0:00:00]} a5 {[%emt 0:00:00]} 41. Kg1 {[%emt 0:02:06]} Bxf3 {[%emt 0:10:21]} 42. gxf3 {[%emt 0:00:06]} Kf8 {[%emt 0:00:46]} 43. a4 {[%emt 0:19:29]} Rb2 {[%emt 0:02:23]} 44. Rc1 {[%emt 0:02:13]} Rxb3 {[%emt 0:00:58]} 45. c5 {[%emt 0:00:04]} Ke7 {[%emt 0:00:54]} 46. c6 {[%emt 0:00:05]} Kd8 {[%emt 0:00:12]} 47. Rd1+ {[%emt 0:00:04]} Kc7 {[%emt 0:07:12]} 48. Rd7+ {[%emt 0:00:04]} Kxc6 {[%emt 0:00:03]} 49. Rxf7 {[%emt 0:00:05]} Rb4 {[%emt 0:01:17]} 50. Rxg7 {[%emt 0:00:05]} Rxa4 {[%emt 0:00:03]} 51. Kg2 {[%emt 0:00:35]} Kd6 {[%emt 0:00:19]} 52. Kg3 {[%emt 0:02:33]} Ke6 {[%emt 0:00:12]} 53. h4 {[%emt 0:01:15]} Kf6 {[%emt 0:00:14]} 54. Ra7 {[%emt 0:00:07]} Kg6 {[%emt 0:00:45]} 55. Ra6+ {[%emt 0:03:54]} Kh5 {[%emt 0:01:05]} 56. Ra8 {[%emt 0:00:07]} Kg6 {[%emt 0:02:57]} 57. Rg8+ {[%emt 0:01:29]} Kf7 {[%emt 0:01:44]} 58. Rg5 {[%emt 0:02:17]} Ra1 {[%emt 0:01:19]} 59. Kf4 {[%emt 0:00:08]} Ra4+ {[%emt 0:00:13]} 60. Ke3 {[%emt 0:00:43]} Rxh4 {[%emt 0:00:18]} 61. Rxa5 {[%emt 0:00:23]} Kf6 {[%emt 0:00:30]} 62. Ra8 {[%emt 0:00:46]} Rb4 {[%emt 0:00:37]} 63. Kf2 {[%emt 0:00:20]} Kf5 {[%emt 0:00:30]} 64. Kg3 {[%emt 0:00:08]} Rc4 {[%emt 0:01:37]} 65. Rf8+ {[%emt 0:00:23]} Kg6 {[%emt 0:00:20]} 66. f4 {[%emt 0:02:21]} Rc1 {[%emt 0:01:03]} 67. f5+ {[%emt 0:01:18]} Kg7 {[%emt 0:00:07]} 68. Ra8 {[%emt 0:00:55]} Kf6 {[%emt 0:00:40]} 69. Ra5 {[%emt 0:00:06]} Rc4 {[%emt 0:00:14]} 70. Kf3 {[%emt 0:00:07]} Rb4 {[%emt 0:00:05]} 71. Ke3 {[%emt 0:00:10]} Rc4 {[%emt 0:00:06]} 72. Kd3 {[%emt 0:00:07]} Rf4 {[%emt 0:00:05]} 73. Ke3 {[%emt 0:00:04]} Rxf5 {[%emt 0:00:04]} 74. Rxf5+ {[%emt 0:00:08]} Kxf5 {[%emt 0:00:04]} 1/2-1/2

[Event "European Womens-ch 2025"]
[Site "Rhodes"]
[Date "2025.04.05"]
[Round "6.12"]
[White "Mkrtchian, Lilit"]
[Black "Smietanska, Wiktoria"]
[Result "1-0"]
[Annotator "RC"]
[ECO "D02"]
[WhiteElo "2388"]
[BlackElo "2254"]
[PlyCount "93"]
[EventDate "2025.03.29"]
[EventType "swiss"]
[EventCountry "GRE"]
[SourceTitle "playchess.com"]
[Source "ChessBase"]
[SourceQuality "1"]
[TimeControl "40/5400+30:1800+30"]

1. d4 {[%emt 0:00:22]} d5 {[%emt 0:00:10]} 2. Nf3 {[%emt 0:00:24]} Nf6 {[%emt 0:00:14]} 3. c3 {[%emt 0:00:31]} e6 {[%emt 0:06:24]} 4. Bf4 {[%emt 0:01:46]} c5 {[%emt 0:02:00]} 5. e3 {[%emt 0:00:14]} Nc6 {[%emt 0:01:30]} 6. Nbd2 {[%emt 0:00:37]} Bd6 {[%emt 0:02:35]} 7. Bg3 {[%emt 0:07:14]} O-O {[%emt 0:01:55]} 8. Bd3 {[%emt 0:00:15]} Re8 {[%emt 0:03:27]} 9. Ne5 {[%emt 0:01:54]} Qc7 {[%emt 0:04:22]} 10. f4 {[%emt 0:15:10]} a6 {[%emt 0:06:09]} 11. Qf3 {[%emt 0:14:02]} b5 {[%emt 0:05:30]} 12. Bh4 {[%emt 0:07:16]} Be7 {[%emt 0:06:31]} 13. Qh3 {[%emt 0:04:22]} h6 {[%emt 0:06:56]} 14. g4 {[%emt 0:08:54]} cxd4 {[%emt 0:11:24]} 15. exd4 {[%emt 0:00:49]} Nxe5 {[%emt 0:02:02]} 16. fxe5 {[%emt 0:07:09]} Ne4 {[%emt 0:03:51]} 17. Bxe7 {[%emt 0:05:10]} Qxe7 {[%emt 0:02:22]} 18. Nxe4 {[%emt 0:00:29]} dxe4 {[%emt 0:00:07]} 19. Bxe4 {[%emt 0:00:02]} Bb7 {[%emt 0:01:03]} 20. Bxb7 {[%emt 0:01:23]} Qxb7 {[%emt 0:00:03]} 21. O-O {[%emt 0:01:39]} b4 {[%emt 0:01:52]} 22. Rf3 {[%emt 0:03:27]} bxc3 {[%emt 0:02:17]} 23. bxc3 {[%emt 0:00:03]} Qe4 {[%emt 0:04:07]} 24. Raf1 {[%emt 0:00:50]} Ra7 {[%emt 0:01:00]} 25. Qh5 {[%emt 0:03:28]} Rb8 {[%emt 0:13:56]} 26. g5 {[%emt 0:04:16]} Rb1 {[%emt 0:02:22]} 27. gxh6 {[%emt 0:01:30]} gxh6 {[%emt 0:03:10]} 28. Rxb1 {[%emt 0:08:05]} Qxb1+ {[%emt 0:00:03]} 29. Rf1 {[%emt 0:01:32]} Qe4 {[%emt 0:04:32]} 30. Qf3 {[%emt 0:01:02]} Qxf3 {[%emt 0:01:19]} 31. Rxf3 {[%emt 0:00:03]} Rb7 {[%emt 0:00:11]} 32. c4 {[%emt 0:01:02]} Rb1+ {[%emt 0:00:20]} 33. Rf1 {[%emt 0:00:30]} Rb2 {[%emt 0:00:32]} 34. Rf2 {[%emt 0:01:02]} Rb1+ {[%emt 0:00:10]} 35. Kg2 {[%emt 0:00:46]} Rd1 {[%emt 0:00:22]} 36. Rc2 {[%emt 0:00:18]} Rxd4 {[%emt 0:00:06]} 37. c5 {[%emt 0:00:02]} Rd7 {[%emt 0:00:46]} 38. c6 {[%emt 0:00:12]} Rc7 {[%emt 0:00:06]} 39. Kf3 {[%emt 0:00:05]} Kf8 {[%emt 0:03:04]} 40. Ke4 {[%emt 0:00:00]} Ke7 {[%emt 0:00:00]} 41. Kd4 {[%emt 0:02:56]} f6 {[%emt 0:06:21]} 42. exf6+ {[%emt 0:04:33]} Kd6 {[%emt 0:01:29]} 43. Ke4 {[%emt 0:00:25]} a5 {[%emt 0:02:45]} 44. Rd2+ {[%emt 0:02:17]} Kc5 {[%emt 0:00:14]} 45. Ke5 {[%emt 0:00:08]} Kb5 {[%emt 0:01:19]} 46. Rc2 {[%emt 0:00:10]} a4 {[%emt 0:00:29]} 47. Kxe6 {[%emt 0:00:15]} 1-0

[Event "European Womens-ch 2025"]
[Site "Rhodes"]
[Date "2025.04.05"]
[Round "6.13"]
[White "Zimina, Olga"]
[Black "Vega Gutierrez, Sabrina"]
[Result "1/2-1/2"]
[Annotator "RC"]
[ECO "B13"]
[WhiteElo "2293"]
[BlackElo "2380"]
[PlyCount "77"]
[EventDate "2025.03.29"]
[EventType "swiss"]
[EventCountry "GRE"]
[SourceTitle "playchess.com"]
[Source "ChessBase"]
[SourceQuality "1"]
[TimeControl "40/5400+30:1800+30"]

1. d4 {[%emt 0:00:11]} d5 {[%emt 0:00:10]} 2. Bf4 {[%emt 0:00:12]} c5 {[%emt 0:02:14]} 3. e3 {[%emt 0:00:07]} Nc6 {[%emt 0:01:03]} 4. Nf3 {[%emt 0:00:15]} cxd4 {[%emt 0:02:46]} 5. exd4 {[%emt 0:01:09]} Bg4 {[%emt 0:00:23]} 6. Nbd2 {[%emt 0:03:53]} e6 {[%emt 0:02:57]} 7. c3 {[%emt 0:01:59]} Bd6 {[%emt 0:00:11]} 8. Bxd6 {[%emt 0:01:07]} Qxd6 {[%emt 0:00:06]} 9. Bd3 {[%emt 0:02:11]} Nge7 {[%emt 0:00:34]} 10. O-O {[%emt 0:05:38]} Bf5 {[%emt 0:07:11]} 11. Ne1 {[%emt 0:00:47]} g5 {[%emt 0:04:47]} 12. b4 {[%emt 0:06:07]} h5 {[%emt 0:08:28]} 13. b5 {[%emt 0:02:04]} Na5 {[%emt 0:01:48]} 14. Qa4 {[%emt 0:11:12]} b6 {[%emt 0:01:26]} 15. Nb3 {[%emt 0:23:38]} Bxd3 {[%emt 0:03:52]} 16. Nxd3 {[%emt 0:02:22]} Nc4 {[%emt 0:00:19]} 17. Rae1 {[%emt 0:02:47]} Qa3 {[%emt 0:04:04]} 18. Qa6 {[%emt 0:07:22]} Nf5 {[%emt 0:06:08]} 19. Nb4 {[%emt 0:02:33]} O-O {[%emt 0:01:32]} 20. Re2 {[%emt 0:03:13]} Rfc8 {[%emt 0:03:24]} 21. h3 {[%emt 0:01:40]} Kg7 {[%emt 0:03:39]} 22. g4 {[%emt 0:01:43]} hxg4 {[%emt 0:00:50]} 23. hxg4 {[%emt 0:00:04]} Nfd6 {[%emt 0:00:42]} 24. f4 {[%emt 0:03:56]} Rh8 {[%emt 0:06:44]} 25. f5 {[%emt 0:05:47]} Qxa6 {[%emt 0:11:41]} 26. Nxa6 {[%emt 0:01:37]} Rh4 {[%emt 0:11:21]} 27. fxe6 {[%emt 0:00:33]} Rxg4+ {[%emt 0:00:07]} 28. Kf2 {[%emt 0:00:06]} Ne4+ {[%emt 0:00:49]} 29. Ke1 {[%emt 0:00:13]} fxe6 {[%emt 0:00:11]} 30. Nc7 {[%emt 0:00:25]} Rc8 {[%emt 0:00:22]} 31. Nxe6+ {[%emt 0:00:28]} Kg8 {[%emt 0:00:30]} 32. Rh2 {[%emt 0:03:02]} Rg3 {[%emt 0:11:40]} 33. Rh6 {[%emt 0:03:30]} Re3+ {[%emt 0:01:28]} 34. Kd1 {[%emt 0:00:01]} Nxc3+ {[%emt 0:03:29]} 35. Kc2 {[%emt 0:01:45]} Na3+ {[%emt 0:00:26]} 36. Kd2 {[%emt 0:00:07]} Nc4+ {[%emt 0:00:11]} 37. Kc2 {[%emt 0:00:05]} Na3+ {[%emt 0:00:55]} 38. Kd2 {[%emt 0:01:43]} Nc4+ {[%emt 0:00:02]} 39. Kc2 {[%emt 0:04:28]} 1/2-1/2